bitfinex/quotes_ETHUSD_20250703
["timestamp","ask_amount","ask_price","bid_price","bid_amount"]
[1751542816732,0.192,2594.2,2594.1,0.02]
[1751542816938,1.10938535,2594.2,2594.1,0.02]
[1751542820768,0.192,2594.2,2594.1,0.02]
[1751542820952,1.11022013,2594.2,2594.1,0.02]
[1751542821279,8.25723912,2594.2,2594.1,0.02]
[1751542822085,8.80723912,2594.2,2594.1,0.02]
[1751542822437,1.11022013,2594.2,2594.1,0.02]
[1751542822637,0.192,2594.2,2594.1,0.7998]
[1751542825246,7.99,2594.3,2594.1,0.9918]
[1751542827584,1.937,2594.5,2594.1,0.9918]
[1751542829161,2.8550455,2594.5,2594.1,0.9918]
[1751542829387,1.937,2594.5,2594.1,0.9918]
[1751542832698,1.1100455,2594.6,2594.1,0.9918]
[1751542832907,2.126,2594.6,2594.1,0.9918]
[1751542833069,3.0440455,2594.6,2594.1,0.9918]
[1751542833266,0.192,2594.6,2594.2,0.7883]
[1751542833593,0.9180455,2594.7,2594.4,0.192]
[1751542833594,2.8520455,2594.7,2594.4,0.192]
[1751542833795,0.9180455,2594.8,2594.5,0.7535]
[1751542834092,2.8520455,2594.8,2594.5,0.7535]
[1751542834496,2.8520455,2594.8,2594.4,0.192]
[1751542834669,0.9180455,2594.7,2594.4,0.192]
[1751542835601,2.8520455,2594.8,2594.4,0.192]
[1751542838400,2.8515322,2594.8,2594.4,0.192]
[1751542839877,0.9175322,2594.8,2594.4,0.192]
[1751542840078,1.934,2594.8,2594.4,0.192]
[1751542840277,2.8515322,2594.8,2594.4,0.192]
[1751542851291,0.9175322,2594.7,2594.4,0.192]
[1751542852206,0.9175322,2594.6,2594.4,0.192]
[1751542852414,0.9175322,2594.7,2594.4,0.192]
[1751542852579,0.9175322,2594.6,2594.4,0.192]
[1751542852780,0.9175322,2594.7,2594.4,0.192]
[1751542852998,0.9175322,2594.6,2594.4,0.192]
[1751542853200,0.9175322,2594.7,2594.4,0.192]
[1751542853406,0.9175322,2594.6,2594.4,0.192]
[1751542853595,0.9175322,2594.7,2594.4,0.192]
[1751542853795,0.9175322,2594.6,2594.4,0.192]
[1751542854114,0.9175322,2594.7,2594.4,0.192]
[1751542854318,0.9175322,2594.6,2594.4,0.192]
[1751542854482,0.9175322,2594.5,2594.4,0.192]
[1751542854683,0.9175322,2594.7,2594.4,0.192]
[1751542854878,0.9175322,2594.6,2594.4,0.192]
[1751542855082,0.9175322,2594.5,2594.4,0.192]
[1751542855285,0.9175322,2594.7,2594.4,0.192]
[1751542855597,0.9175322,2594.6,2594.5,0.8114]
[1751542855795,0.9175322,2594.7,2594.5,0.8114]
[1751542856002,0.9175322,2594.6,2594.5,0.8114]
[1751542856213,0.9175322,2594.7,2594.5,0.8114]
[1751542856408,0.9175322,2594.6,2594.5,0.8114]
[1751542856613,0.9175322,2594.7,2594.5,0.8114]
[1751542856923,0.9175322,2594.8,2594.5,1.0034]
[1751542857129,0.9175322,2595.1,2594.8,0.192]
[1751542857416,0.9175322,2595.0,2594.9,0.8044]
[1751542857617,0.9175322,2595.1,2594.9,0.8044]
[1751542857984,0.9175322,2595.0,2594.9,0.8044]
[1751542858186,0.9175322,2595.1,2594.9,0.8044]
[1751542861716,8.06455119,2595.1,2594.8,0.192]
[1751542861919,0.9175322,2595.0,2594.8,0.192]
[1751542862623,8.06455119,2595.1,2594.8,0.192]
[1751542863010,0.9175322,2595.1,2594.8,0.192]
[1751542866323,1.1095322,2595.2,2594.9,0.7508]
[1751542866515,7.99,2595.3,2594.9,0.7508]
[1751542866699,7.99,2595.3,2595.1,0.192]
[1751542866908,8.9075322,2595.4,2595.1,0.192]
[1751542867222,8.9075322,2595.4,2595.2,0.7973]
[1751542870399,7.99,2595.4,2595.2,0.7973]
[1751542872014,9.92,2595.5,2595.1,0.192]
[1751542881344,0.91822724,2595.4,2595.1,0.192]
[1751542881513,1.11022724,2595.4,2595.0,0.7722]
[1751542883736,9.10022724,2595.4,2595.0,0.7722]
[1751542886137,0.91822724,2595.4,2595.1,0.03853416]
[1751542886339,0.91822724,2595.7,2594.9,7.14701899]
[1751542886531,0.91822724,2595.6,2595.1,0.8019]
[1751542886727,0.91822724,2595.7,2595.3,0.7735]
[1751542887243,0.01,2595.8,2595.5,0.7735]
[1751542887446,0.01,2595.8,2595.6,0.03852673]
[1751542887652,0.01,2595.8,2595.7,0.804]
[1751542889546,0.01,2595.8,2595.7,8.80784614]
[1751542889857,0.01,2595.8,2595.7,13.17184622]
[1751542890150,0.01,2595.9,2595.8,5.22957691]
[1751542890351,0.01,2595.9,2595.8,1.3772]
[1751542890552,0.01,2595.9,2595.8,5.22957691]
[1751542890751,0.01,2595.9,2595.8,7.91039129]
[1751542890950,0.01,2597.0,2596.3,3.85154777]
[1751542891157,0.01,2597.0,2596.4,7.99273385]
[1751542891355,0.01,2597.0,2596.5,0.55]
[1751542891648,0.01,2597.0,2596.9,0.7954]
[1751542891848,0.01,2597.0,2596.9,15.10191345]
[1751542892051,0.02,2597.4,2597.1,12.34286756]
[1751542892444,0.02,2597.4,2597.3,1.3822]
[1751542892648,0.02,2597.4,2597.3,16.38621899]
[1751542893347,0.02,2597.6,2597.5,0.7782]
[1751542893659,0.02,2597.6,2597.5,16.26931173]
[1751542893858,0.02,2597.6,2597.5,9.12229274]
[1751542894216,0.02,2597.7,2597.6,3.84970742]
[1751542894521,0.02,2597.7,2597.6,10.5845]
[1751542894956,0.02,2597.7,2597.6,10.5825]
[1751542895143,0.02,2597.7,2597.6,13.5314563]
[1751542895948,0.02,2597.7,2597.6,12.9814563]
[1751542896126,0.02,2597.7,2597.6,0.9945]
[1751542896448,0.02,2597.7,2597.6,10.7745]
[1751542897923,0.02,2597.7,2597.6,11.3245]
[1751542898251,0.02,2598.0,2597.9,0.55]
[1751542898425,0.02,2598.0,2597.9,1.348]
[1751542898626,0.02,2598.0,2597.9,3.17015343]
[1751542898822,0.02,2598.0,2597.9,1.8957615]
[1751542899027,0.02,2598.0,2597.9,11.1227615]
[1751542899244,0.02,2598.0,2597.9,8.842]
[1751542900050,0.02,2598.0,2597.9,9.19750104]
[1751542900267,0.02,2598.0,2597.9,0.99]
[1751542900461,0.02,2598.0,2597.9,8.842]
[1751542900666,0.02,2598.0,2597.9,9.9187]
[1751542901770,0.02,2598.0,2597.9,2.0667]
[1751542901973,0.02,2598.0,2597.9,0.99]
[1751542902129,0.02,2598.0,2597.9,8.84]
[1751542903671,0.02,2598.0,2597.9,0.99]
[1751542903873,0.02,2598.0,2597.9,8.839]
[1751542907781,0.02,2598.0,2597.9,0.99]
[1751542907979,0.02,2598.0,2597.9,8.838]
[1751542908348,0.02,2598.0,2597.9,9.9142]
[1751542915558,0.02,2598.0,2597.9,10.4642]
[1751542920708,0.02,2598.0,2597.9,9.9142]
[1751542920887,0.02,2598.0,2597.9,9.9122]
[1751542921794,0.02,2598.0,2597.9,17.02971873]
[1751542922288,0.02,2598.0,2597.9,17.57971873]
[1751542922594,0.02,2598.0,2597.6,0.7523]
[1751542922761,0.92086631,2597.9,2597.7,7.845]
[1751542922952,0.02,2598.0,2597.7,7.845]
[1751542923171,0.92087629,2597.9,2597.7,7.845]
[1751542923393,0.02,2598.0,2597.7,8.70473]
[1751542923568,0.92091292,2597.9,2597.7,8.70473]
[1751542923769,0.02,2598.0,2597.7,8.70473]
[1751542923956,0.92091296,2597.9,2597.7,8.70473]
[1751542924152,0.02,2598.0,2597.7,8.70473]
[1751542924395,0.02,2598.0,2597.8,7.845]
[1751542924915,0.02,2598.0,2597.8,8.983003]
[1751542925572,0.02,2598.0,2597.8,1.138003]
[1751542925798,0.02,2598.0,2597.9,7.845]
[1751542925987,0.94079922,2598.0,2597.9,7.845]
[1751542930316,0.94079922,2598.0,2597.6,2.6753]
[1751542930605,0.02,2598.0,2597.7,7.845]
[1751542930907,0.9207264,2597.9,2597.7,7.845]
[1751542931202,0.8072,2598.0,2597.7,7.845]
[1751542931413,0.92058746,2597.9,2597.7,7.845]
[1751542931577,0.8072,2598.0,2597.7,7.845]
[1751542931770,0.92056086,2597.9,2597.7,7.845]
[1751542931974,0.02,2598.0,2597.7,8.8976]
[1751542932526,0.02,2598.0,2597.8,7.845]
[1751542932675,0.02,2598.0,2597.9,0.192]
[1751542932876,0.02,2598.0,2597.9,0.23049262]
[1751542933075,0.02,2598.0,2597.9,0.9835]
[1751542933314,0.02,2598.0,2597.9,1.97161]
[1751542933677,0.02,2598.0,2597.9,2.01010262]
[1751542933877,0.02,2598.0,2597.9,1.97161]
[1751542937998,0.7789,2598.5,2597.9,1.97161]
[1751542937999,0.10169696,2598.4,2598.1,3.84896655]
[1751542938290,2.2793113,2599.1,2598.0,1.3375]
[1751542938291,0.2141147,2599.5,2598.8,4.63532245]
[1751542938503,0.2141147,2599.5,2598.8,0.7875]
[1751542938814,0.7763,2599.4,2598.9,7.851]
[1751542939000,0.7763,2599.4,2599.0,1.05615]
[1751542941602,0.7763,2599.4,2599.0,7.847]
[1751542942507,0.7763,2599.4,2598.8,0.7875]
[1751542942707,0.7763,2599.4,2598.9,7.846]
[1751542943410,0.2141147,2599.5,2598.9,7.846]
[1751542944090,0.2141147,2599.5,2599.0,7.843]
[1751542944296,0.2141147,2599.5,2599.1,0.7843]
[1751542948129,0.2141147,2599.5,2599.4,0.192]
[1751542949996,0.2141147,2599.5,2598.5,2.29631818]
[1751542950229,7.11337846,2599.3,2598.6,7.841]
[1751542950529,0.7928,2599.2,2598.7,0.86051]
[1751542953102,0.7928,2599.2,2598.6,7.841]
[1751542953410,7.11337846,2599.1,2598.3,0.8318]
[1751542953612,0.751,2599.0,2598.3,0.8318]
[1751542955534,0.751,2599.0,2598.3,1.12501795]
[1751542955700,0.751,2599.0,2598.2,0.51864666]
[1751542958350,0.7697,2598.9,2598.0,0.29246147]
[1751542958538,1.921,2599.0,2597.8,0.827]
[1751542958539,0.7697,2598.7,2597.8,0.827]
[1751542960046,0.7697,2598.7,2598.4,0.192]
[1751542962861,0.7888,2598.9,2598.5,0.03848374]
[1751542963030,0.7888,2598.9,2598.6,0.192]
[1751542964567,7.11337846,2598.9,2597.9,0.29032556]
[1751542964765,0.791,2598.8,2598.4,0.192]
[1751542972961,0.192,2598.9,2598.4,0.192]
[1751542973673,0.7514,2598.8,2598.4,0.192]
[1751542976561,7.11337846,2598.7,2598.4,0.192]
[1751542976765,0.8033,2598.6,2598.4,0.192]
[1751542976966,0.8033,2598.6,2597.9,1.2733071]
[1751542977271,0.8033,2598.6,2598.2,0.192]
[1751542981380,8.7933,2598.6,2598.2,0.192]
[1751542983373,8.7933,2598.6,2597.9,5.38141824]
[1751542983573,8.7933,2598.6,2598.5,0.192]
[1751542983983,8.7933,2598.6,2597.9,2.35081818]
[1751542984158,8.7933,2598.6,2598.3,0.192]
[1751542987690,7.99,2598.6,2598.3,0.192]
[1751542987991,0.8199,2598.5,2598.3,0.192]
[1751542988193,0.8199,2598.5,2597.9,1.53221818]
[1751542988397,7.11337846,2598.4,2597.8,1.53221818]
[1751542988584,7.11337846,2598.4,2597.6,3.06972727]
[1751542988585,0.9599,2598.3,2597.9,0.192]
[1751542990394,0.8147,2598.2,2597.9,0.192]
[1751542990594,2.7357,2598.2,2597.9,0.192]
[1751542996369,0.192,2598.1,2597.7,0.192]
[1751542997319,0.7631,2597.8,2597.4,0.192]
[1751542997529,8.7531,2597.8,2597.4,0.192]
[1751543000004,0.766,2597.7,2597.4,0.192]
[1751543001110,0.766,2597.7,2597.0,0.7672]
[1751543001308,0.958,2597.7,2597.2,0.192]
[1751543004585,1.922,2597.6,2597.2,0.192]
[1751543014902,0.8107,2599.0,2598.1,3.84882266]
[1751543015105,0.8107,2599.0,2598.3,0.7899]
[1751543016122,0.8107,2599.0,2598.0,0.7541]
[1751543016329,10.19352032,2599.4,2598.0,0.7541]
[1751543016330,0.8075,2598.7,2598.0,0.7541]
[1751543016499,1.921,2598.6,2598.0,0.22863182]
[1751543016698,0.8075,2598.7,2597.8,0.8126]
[1751543017033,1.921,2598.6,2597.8,0.8126]
[1751543019892,10.0,2599.2,2597.8,7.92597846]
[1751543019893,0.7817,2599.1,2597.8,7.92597846]
[1751543020099,10.0,2598.9,2598.0,0.8126]
[1751543020339,10.0,2598.9,2598.0,4.66169927]
[1751543020497,10.0,2598.9,2598.1,0.46616993]
[1751543022831,10.7817,2599.1,2598.1,0.46616993]
[1751543023028,10.0,2598.9,2598.2,0.03848818]
[1751543023229,9.841,2598.8,2598.2,0.03848818]
[1751543023402,10.7817,2599.1,2598.2,0.55509967]
[1751543023728,1.921,2598.7,2598.2,0.51661149]
[1751543025026,1.921,2598.7,2598.4,0.192]
[1751543025616,1.921,2598.7,2598.2,0.51661149]
[1751543025822,2.113,2598.7,2598.3,0.192]
[1751543026012,2.9196,2598.7,2598.3,0.192]
[1751543026822,2.7276,2598.7,2598.0,0.8126]
[1751543027132,0.192,2598.6,2598.1,0.192]
[1751543029141,1.921,2598.5,2598.2,0.03848818]
[1751543029302,10.8045,2599.1,2598.3,0.8028]
[1751543029303,1.921,2598.4,2598.3,0.8028]
[1751543029508,0.192,2598.9,2598.4,0.192]
[1751543029699,1.921,2598.5,2598.4,0.192]
[1751543031104,0.192,2598.9,2598.4,0.192]
[1751543031303,9.837,2598.8,2598.4,0.192]
[1751543033931,9.83,2598.7,2598.4,0.192]
[1751543035330,18.13247846,2598.6,2598.1,0.192]
[1751543036041,0.192,2598.3,2597.9,0.192]
[1751543036256,8.104,2598.3,2597.9,0.192]
[1751543040843,10.0,2598.2,2597.9,0.192]
[1751543041044,1.921,2598.1,2597.9,0.192]
[1751543051770,7.889,2598.0,2597.5,0.808]
[1751543052057,0.7909,2597.8,2597.4,0.192]
[1751543068668,1.948,2597.7,2597.5,0.7855]
[1751543068874,1.948,2597.7,2597.6,0.192]
[1751543069242,1.948,2597.7,2597.1,2.31771818]
[1751543069445,1.948,2597.7,2597.1,1.24710455]
[1751543069446,2.7335,2597.7,2597.1,1.24710455]
[1751543070570,2.7335,2597.7,2597.1,5.09753595]
[1751543073675,2.7335,2597.7,2597.2,3.85028855]
[1751543074174,10.8027,2597.9,2597.3,3.88858714]
[1751543074366,1.931,2597.7,2597.3,3.88858714]
[1751543074674,1.931,2597.7,2597.4,0.77388757]
[1751543075243,1.931,2597.7,2597.2,3.85021195]
[1751543075452,1.931,2597.7,2597.3,3.85013066]
[1751543077448,1.931,2597.7,2597.1,12.74309716]
[1751543077748,1.931,2597.7,2597.3,3.85007887]
[1751543077949,1.931,2597.7,2597.3,5.50939647]
[1751543079280,1.931,2597.7,2597.6,0.192]
[1751543082188,0.7597,2597.6,2597.2,0.192]
[1751543083070,10.7597,2597.6,2597.0,1.53221818]
[1751543083270,10.9517,2597.6,2597.1,0.192]
[1751543084901,0.192,2597.6,2597.2,0.8005]
[1751543085054,1.931,2598.9,2597.9,0.8005]
[1751543085255,11.931,2598.9,2598.0,7.11337846]
[1751543085456,0.813,2598.8,2598.0,3.84903536]
[1751543086169,0.813,2598.8,2598.1,3.84895381]
[1751543086364,0.813,2598.8,2598.2,0.03848818]
[1751543086579,0.813,2598.8,2598.3,3.84858185]
[1751543086894,0.813,2598.8,2598.3,4.63628185]
[1751543087272,1.931,2598.7,2598.3,4.63628185]
[1751543087455,0.813,2598.8,2598.4,3.84848125]
[1751543087654,1.931,2598.7,2598.3,0.7877]
[1751543087888,1.931,2598.7,2598.4,3.84844722]
[1751543088562,1.931,2598.7,2598.4,3.84852216]
[1751543089286,1.931,2598.7,2598.4,3.88700738]
[1751543089695,10.0,2598.9,2598.4,3.88700738]
[1751543089999,1.93,2598.8,2598.4,3.88700738]
[1751543090192,1.93,2598.8,2598.4,0.03848522]
[1751543090397,1.93,2598.8,2598.3,4.63630106]
[1751543090603,1.93,2598.8,2598.3,5.48481009]
[1751543090906,10.0,2598.9,2598.3,5.48481009]
[1751543091205,1.93,2598.8,2598.3,5.48481009]
[1751543091403,10.0,2598.9,2598.3,1.63620903]
[1751543091603,0.82,2598.7,2598.3,0.84850903]
[1751543091810,2.75,2598.7,2598.2,3.84873634]
[1751543092508,2.75,2598.7,2598.0,4.13497391]
[1751543092812,2.75,2598.7,2598.1,3.8489576]
[1751543093197,2.75,2598.7,2598.0,3.84905112]
[1751543094812,2.75,2598.7,2598.1,3.84894925]
[1751543094991,2.75,2598.7,2598.4,0.192]
[1751543102070,1.93,2598.7,2598.4,0.192]
[1751543102736,1.93,2598.7,2598.4,3.88698851]
[1751543102940,1.93,2598.7,2598.6,0.192]
[1751543103549,1.93,2598.7,2598.6,0.18918822]
[1751543103752,1.944,2598.9,2598.7,4.64133711]
[1751543104052,1.944,2598.9,2598.8,0.192]
[1751543105154,1.944,2599.0,2598.8,0.192]
[1751543105357,0.789,2598.9,2598.8,0.192]
[1751543105760,0.789,2598.9,2598.4,0.7933]
[1751543105948,0.789,2598.9,2598.7,0.192]
[1751543106960,1.944,2599.0,2598.7,4.04006376]
[1751543107168,1.944,2599.0,2598.7,3.84806376]
[1751543107462,1.944,2599.0,2598.9,0.192]
[1751543110245,2.7643,2599.0,2598.7,0.192]
[1751543110589,2.7743,2599.0,2598.7,0.192]
[1751543111775,2.7743,2599.0,2598.2,4.71923157]
[1751543111965,0.192,2598.9,2598.5,0.192]
[1751543112272,2.7743,2599.0,2598.2,4.68067854]
[1751543112471,2.7743,2599.0,2598.7,0.192]
[1751543115544,10.192,2598.9,2598.5,0.192]
[1751543120707,0.8046,2598.8,2598.5,0.192]
[1751543122272,0.8046,2598.8,2598.5,0.212]
[1751543123857,11.954,2599.0,2598.5,0.79]
[1751543124062,11.954,2599.0,2598.7,0.192]
[1751543124902,12.146,2599.0,2598.6,0.192]
[1751543126487,12.146,2599.0,2598.5,0.02]
[1751543126488,0.7642,2598.9,2598.5,0.02]
[1751543126706,0.9562,2598.6,2598.5,0.02]
[1751543128188,18.8372,2598.6,2598.5,0.02]
[1751543132264,26.8272,2598.6,2598.5,0.02]
[1751543135977,26.8162,2598.6,2598.5,0.02]
[1751543145797,26.8262,2598.6,2598.5,0.02]
[1751543146613,33.93957846,2598.6,2598.5,0.02]
[1751543149905,26.8262,2598.6,2598.5,0.02]
[1751543155850,26.8262,2598.6,2598.5,0.02]
[1751543158557,29.2972,2598.6,2598.5,0.02]
[1751543160322,0.55,2598.4,2597.5,0.02]
[1751543160527,1.0213,2597.7,2597.5,0.02]
[1751543160729,9.791,2597.6,2597.5,0.02]
[1751543164716,41.225138,2597.6,2597.5,0.02]
[1751543164919,42.10132988,2597.6,2597.5,0.02]
[1751543165147,51.88732988,2597.6,2597.5,0.02]
[1751543165367,29.8044715,2597.6,2597.5,0.02]
[1751543166495,28.5689,2597.6,2597.5,0.02]
[1751543166642,28.92777378,2597.6,2597.5,0.02]
[1751543166843,28.5689,2597.6,2597.5,0.02]
[1751543167454,51.561138,2597.6,2597.5,0.02]
[1751543167775,51.91976952,2597.6,2597.5,0.02]
[1751543168070,51.9197734,2597.6,2597.5,0.02]
[1751543168780,52.10840277,2597.6,2597.5,0.02]
[1751543171289,51.74976737,2597.6,2597.5,0.02]
[1751543173385,51.561138,2597.6,2597.5,0.02]
[1751543174998,41.775138,2597.6,2597.5,0.02]
[1751543175199,51.563138,2597.6,2597.5,0.02]
[1751543175781,18.7829,2597.6,2597.5,0.02]
[1751543176095,27.778,2597.6,2597.5,0.02]
[1751543176264,17.778,2597.6,2597.5,0.02]
[1751543176459,27.97,2597.6,2597.5,0.02]
[1751543178061,27.778,2597.6,2597.5,0.02]
[1751543179589,19.918,2597.6,2597.5,0.02]
[1751543179777,27.778,2597.6,2597.5,0.02]
[1751543180095,19.788,2597.6,2597.5,0.02]
[1751543180486,26.90137846,2597.6,2597.5,0.02]
[1751543187999,27.26056816,2597.6,2597.5,0.02]
[1751543188426,28.14629954,2597.6,2597.5,0.02]
[1751543188710,20.1461897,2597.6,2597.5,0.02]
[1751543189304,21.03222198,2597.6,2597.5,0.02]
[1751543190684,21.03272039,2597.6,2597.5,0.02]
[1751543192229,20.67303228,2597.6,2597.5,0.02]
[1751543192410,21.03276697,2597.6,2597.5,0.02]
[1751543193532,21.03290554,2597.6,2597.5,0.02]
[1751543195253,21.03420186,2597.6,2597.5,0.02]
[1751543206028,13.17520186,2597.6,2597.5,0.801]
[1751543206338,13.36720186,2597.6,2597.5,0.801]
[1751543209119,12.47987326,2597.6,2597.5,0.801]
[1751543210463,12.12,2597.6,2597.5,0.801]
[1751543210633,12.48040247,2597.6,2597.5,0.02]
[1751543212378,21.25331953,2597.6,2597.5,0.02]
[1751543216557,20.89291706,2597.6,2597.5,0.02]
[1751543216757,21.25322396,2597.6,2597.5,0.02]
[1751543219826,21.2221455,2597.6,2597.5,0.02]
[1751543220744,13.3671455,2597.6,2597.5,0.02]
[1751543221074,21.2221455,2597.6,2597.5,0.02]
[1751543226537,29.08842396,2597.6,2597.5,0.02]
[1751543228377,21.2221455,2597.6,2597.5,0.02]
[1751543230279,20.2221455,2597.6,2597.5,0.02]
[1751543236888,19.8618386,2597.6,2597.5,0.02]
[1751543237090,20.22203271,2597.6,2597.5,0.02]
[1751543237296,19.8618386,2597.6,2597.5,0.02]
[1751543238793,20.22203056,2597.6,2597.5,0.02]
[1751543242885,20.22228626,2597.6,2597.5,0.02]
[1751543243801,20.22227516,2597.6,2597.5,0.02]
[1751543244684,28.21227516,2597.6,2597.5,0.02]
[1751543246397,29.52387516,2597.6,2597.5,0.02]
[1751543246578,28.63603656,2597.6,2597.5,0.02]
[1751543246783,29.52906076,2597.6,2597.5,0.02]
[1751543247178,19.19706076,2597.6,2597.5,0.02]
[1751543247504,28.01846076,2597.6,2597.5,0.02]
[1751543247912,20.16846076,2597.6,2597.5,0.02]
[1751543248102,28.01846076,2597.6,2597.5,0.02]
[1751543248302,20.16846076,2597.6,2597.5,0.02]
[1751543248502,28.01846076,2597.6,2597.5,0.02]
[1751543250807,27.6580242,2597.6,2597.5,0.02]
[1751543251012,28.01843259,2597.6,2597.5,0.02]
[1751543252702,28.02843259,2597.6,2597.5,0.02]
[1751543253924,28.02743259,2597.6,2597.5,0.02]
[1751543258898,28.02744923,2597.6,2597.5,0.02]
[1751543260423,18.25344923,2597.6,2597.5,0.02]
[1751543260601,28.02444923,2597.6,2597.5,0.02]
[1751543261016,18.25344923,2597.6,2597.5,0.02]
[1751543261334,28.02344923,2597.6,2597.5,0.02]
[1751543262205,29.01194923,2597.6,2597.5,0.02]
[1751543262537,28.79744923,2597.6,2597.5,0.02]
[1751543264931,51.78968723,2597.6,2597.5,0.02]
[1751543265244,51.84070879,2597.6,2597.5,0.02]
[1751543265540,58.96720609,2597.6,2597.5,0.02]
[1751543265757,49.19720609,2597.6,2597.5,0.02]
[1751543265915,58.96620609,2597.6,2597.5,0.02]
[1751543266508,49.19720609,2597.6,2597.5,0.02]
[1751543266729,58.96720609,2597.6,2597.5,0.02]
[1751543267347,49.19720609,2597.6,2597.5,0.02]
[1751543267529,58.96720609,2597.6,2597.5,0.02]
[1751543270351,11.17637079,2597.6,2597.5,0.02]
[1751543270524,29.02237079,2597.6,2597.5,0.02]
[1751543277258,19.25337079,2597.6,2597.5,0.02]
[1751543277553,29.02137079,2597.6,2597.5,0.02]
[1751543288273,19.25337079,2597.6,2597.5,0.02]
[1751543288570,21.1729844,2597.6,2597.5,0.02]
[1751543288749,29.0159844,2597.6,2597.5,0.02]
[1751543292470,29.0149844,2597.6,2597.5,0.02]
[1751543299092,36.9253817,2597.6,2597.5,0.02]
[1751543299269,59.3676197,2597.6,2597.5,0.02]
[1751543299676,51.5256197,2597.6,2597.5,0.02]
[1751543299995,59.3666197,2597.6,2597.5,0.02]
[1751543300877,59.3676578,2597.6,2597.5,0.02]
[1751543303268,59.36800849,2597.6,2597.5,0.02]
[1751543303469,59.90510849,2597.6,2597.5,0.02]
[1751543303772,63.75475418,2597.6,2597.5,0.02]
[1751543304498,59.90504676,2597.6,2597.5,0.02]
[1751543305072,37.61229363,2597.5,2597.4,0.02]
[1751543305276,23.762438,2597.1,2597.0,0.02]
[1751543305473,47.97324676,2597.1,2597.0,0.02]
[1751543306767,47.97279727,2597.1,2597.0,0.02]
[1751543311099,47.97242332,2597.1,2597.0,0.02]
[1751543312697,25.53018532,2597.1,2597.0,0.02]
[1751543312920,57.97242332,2597.1,2597.0,0.02]
[1751543313713,35.53018532,2597.1,2597.0,0.02]
[1751543313912,57.97242332,2597.1,2597.0,0.02]
[1751543314114,35.53018532,2597.1,2597.0,0.02]
[1751543314409,57.97242332,2597.1,2597.0,0.02]
[1751543315137,58.25832272,2597.1,2597.0,0.02]
[1751543316331,58.2578731,2597.1,2597.0,0.02]
[1751543319198,58.25767763,2597.1,2597.0,0.02]
[1751543321495,58.25295908,2597.1,2597.0,0.02]
[1751543326645,50.41295908,2597.1,2597.0,0.02]
[1751543327056,59.88305968,2597.1,2597.0,0.02]
[1751543329056,50.12705968,2597.1,2597.0,0.02]
[1751543329282,59.88205968,2597.1,2597.0,0.02]
[1751543332286,37.43982168,2597.1,2597.0,0.02]
[1751543332461,59.88205968,2597.1,2597.0,0.02]
[1751543333265,37.43982168,2597.1,2597.0,0.02]
[1751543333501,59.88205968,2597.1,2597.0,0.02]
[1751543334404,59.8840236,2597.1,2597.0,0.02]
[1751543336508,37.4417856,2597.1,2597.0,0.02]
[1751543336682,59.8840236,2597.1,2597.0,0.02]
[1751543338607,50.1290236,2597.1,2597.0,0.02]
[1751543338814,59.8830236,2597.1,2597.0,0.02]
[1751543342811,49.3588236,2597.1,2597.0,0.02]
[1751543342984,59.1118236,2597.1,2597.0,0.02]
[1751543345420,59.1108236,2597.1,2597.0,0.02]
[1751543346492,59.8657236,2597.1,2597.0,0.02]
[1751543346688,37.4234856,2597.1,2597.0,0.02]
[1751543346888,59.8657236,2597.1,2597.0,0.02]
[1751543347094,37.4234856,2597.1,2597.0,0.02]
[1751543347307,59.8657236,2597.1,2597.0,0.02]
[1751543347488,50.1137236,2597.1,2597.0,0.02]
[1751543347693,59.8657236,2597.1,2597.0,0.02]
[1751543348296,10.55,2597.0,2596.5,0.02]
[1751543348496,10.0,2596.6,2596.5,0.02]
[1751543348791,41.52734411,2596.6,2596.5,0.02]
[1751543351232,49.51734411,2596.6,2596.5,0.02]
[1751543351536,57.19384141,2596.6,2596.5,0.02]
[1751543351830,59.10884141,2596.6,2596.5,0.02]
[1751543352400,36.66660341,2596.6,2596.5,0.02]
[1751543352601,59.10884141,2596.6,2596.5,0.02]
[1751543353402,36.66660341,2596.6,2596.5,0.02]
[1751543353712,59.10814145,2596.6,2596.5,0.02]
[1751543354234,0.55,2596.3,2595.9,0.02]
[1751543354533,10.0,2596.0,2595.9,0.02]
[1751543354737,20.83160771,2596.0,2595.9,0.7958]
[1751543355107,11.08260771,2596.0,2595.9,4.64802851]
[1751543355303,7.99,2596.2,2595.9,4.64802851]
[1751543355304,19.906,2596.2,2596.1,3.85193174]
[1751543355503,19.906,2596.2,2596.1,5.78535273]
[1751543355504,7.99,2596.2,2596.1,5.78535273]
[1751543355722,7.99,2596.2,2596.1,5.97735273]
[1751543356833,7.99,2596.9,2596.7,0.7614]
[1751543357036,20.1075453,2596.8,2596.7,0.7614]
[1751543357241,20.99795643,2596.8,2596.7,0.7614]
[1751543359010,20.99795643,2596.8,2596.7,4.6124417]
[1751543359212,20.99795643,2596.8,2596.7,0.7614]
[1751543360234,11.24995643,2596.8,2596.7,4.6124417]
[1751543360447,13.16595643,2596.8,2596.7,4.6124417]